fUSD/lending_fUSD_20260228
["ID","MTS","AMOUNT","RATE_DAILY","PERIOD"]
[406881895,1772264483933,-151.000008,0.00041096,120]
[406881896,1772264483959,-151.0,0.00041096,120]
[406881897,1772264483984,-151.0,0.00041096,120]
[406881898,1772264484008,-169.672958,0.00041096,120]
[406881899,1772264484034,-199.864847,0.00041096,120]
[406881900,1772264484060,-151.0,0.00041096,120]
[406881901,1772264484090,-151.0,0.00041096,120]
[406881902,1772264484120,-151.0,0.00041096,120]
[406881903,1772264484147,-151.23364,0.00041096,120]
[406881904,1772264484171,-173.670217,0.00041096,120]
[406881905,1772264484197,-151.0,0.00041096,120]
[406881906,1772264484222,-151.0,0.00041096,120]
[406881907,1772264484247,-171.759759,0.00041096,120]
[406881908,1772264484272,-160.448669,0.00041096,120]
[406881909,1772264484298,-180.353393,0.00041096,120]
[406881910,1772264484323,-151.0,0.00041096,120]
[406881911,1772264484349,-159.727378,0.00041096,120]
[406881912,1772264484375,-151.0,0.00041096,120]
[406881913,1772264484401,-151.0,0.00041096,120]
[406881914,1772264484427,-175.363891,0.00041096,120]
[406881915,1772264484455,-252.343687,0.00041096,120]
[406881916,1772264484493,-151.0,0.00041096,120]
[406881917,1772264484519,-151.0,0.00041096,120]
[406881918,1772264484545,-151.0,0.00041096,120]
[406881919,1772264484587,-215.252612,0.00041096,120]
[406881920,1772264484615,-166.488913,0.00041096,120]
[406881921,1772264484641,-151.0,0.00041096,120]
[406881922,1772264484667,-183.506882,0.00041096,120]
[406881923,1772264484693,-151.0,0.00041096,120]
[406881924,1772264484720,-151.0,0.00041096,120]
[406881925,1772264484745,-242.974448,0.00041096,31]
[406881926,1772264484769,-155.4467,0.00041096,120]
[406881927,1772264484795,-151.0,0.00041096,120]
[406881928,1772264484821,-151.0,0.00041096,120]
[406881929,1772264484846,-151.0,0.00041096,120]
[406881930,1772264484871,-151.0,0.00041096,120]
[406881931,1772264484896,-151.0,0.00041096,120]
[406881932,1772264484921,-151.0,0.00041096,120]
[406881933,1772264484948,-151.0,0.00041096,120]
[406881934,1772264484974,-151.0,0.00041096,120]
[406881935,1772264485000,-151.0,0.00041096,120]
[406881936,1772264485026,-151.0,0.00041096,120]
[406881937,1772264485052,-151.0,0.00041096,120]
[406881938,1772264485081,-151.0,0.00041096,120]
[406881939,1772264485107,-151.0,0.00041096,120]
[406881940,1772264485134,-151.0,0.00041096,120]
[406881941,1772264485165,-151.0,0.00041096,120]
[406881942,1772264485191,-151.0,0.00041096,120]
[406881943,1772264485216,-295.037625,0.00041096,120]
[406881944,1772264485241,-151.0,0.00041096,120]
[406881945,1772264485267,-151.0,0.00041096,120]
[406881946,1772264485293,-151.0,0.00041096,120]
[406881947,1772264485320,-151.0,0.00041096,120]
[406881948,1772264485346,-151.0,0.00041096,120]
[406881949,1772264485374,-151.0,0.00041096,120]
[406881950,1772264485400,-151.0,0.00041096,120]
[406881951,1772264485426,-161.699904,0.00041096,120]
[406881952,1772264485453,-151.0,0.00041096,120]
[406881953,1772264485479,-151.0,0.00041096,120]
[406881954,1772264485507,-166.016855,0.00041096,120]
[406881955,1772264485537,-151.0,0.00041096,120]
[406881956,1772264485563,-151.0,0.00041096,120]
[406881957,1772264485591,-151.0,0.00041096,120]
[406881958,1772264485618,-151.0,0.00041096,120]
[406881959,1772264485645,-151.0,0.00041096,120]
[406881960,1772264485671,-151.0,0.00041096,120]
[406881961,1772264485700,-151.0,0.00041096,120]
[406881962,1772264485728,-188.412998,0.00041096,120]
[406881963,1772264485754,-285.341517,0.00041096,120]
[406881964,1772264485782,-151.0,0.00041096,120]
[406881965,1772264485808,-151.0,0.00041096,120]
[406881966,1772264485837,-151.0,0.00041096,120]
[406881967,1772264485864,-252.675593,0.00041096,120]
[406881968,1772264485891,-151.0,0.00041096,120]
[406881969,1772264485920,-350.839574,0.00041096,120]
[406881970,1772264485948,-350.839574,0.00041096,120]
[406881971,1772264485975,-350.839574,0.00041096,120]
[406881972,1772264486003,-350.839574,0.00041096,120]
[406881973,1772264486032,-350.839574,0.00041096,120]
[406881974,1772264486060,-350.839574,0.00041096,120]
[406881975,1772264486091,-151.0,0.00041096,120]
[406881976,1772264486120,-151.0,0.00041096,120]
[406881977,1772264486147,-223.122949,0.00041096,120]
[406881978,1772264486176,-151.0,0.00041096,120]
[406881979,1772264486203,-256.4539,0.00041096,120]
[406881980,1772264486231,-350.839574,0.00041096,120]
[406881981,1772264486260,-151.0,0.00041096,120]
[406881982,1772264486289,-350.839574,0.00041096,120]
[406881983,1772264486317,-350.839574,0.00041096,120]
[406881984,1772264486347,-151.0,0.00041096,120]
[406881985,1772264486375,-151.0,0.00041096,120]
[406881986,1772264486402,-350.839574,0.00041096,120]
[406881987,1772264486430,-151.0,0.00041096,120]
[406881988,1772264486594,-350.839574,0.00041096,120]
[406881989,1772264486622,-350.839574,0.00041096,120]
[406881990,1772264486650,-151.0,0.00041096,120]
[406881991,1772264486677,-151.0,0.00041096,120]
[406881992,1772264486704,-151.0,0.00041096,120]
[406881993,1772264486732,-281.431155,0.00041096,120]
[406881994,1772264486761,-3959.084094,0.00041096,120]
[406881995,1772264486788,-3959.084094,0.00041096,120]
[406881996,1772264486814,-3959.084094,0.00041096,120]
[406881997,1772264486839,-151.0,0.00041096,120]
[406881998,1772264486865,-3959.084094,0.00041096,120]
[406881999,1772264486890,-151.0,0.00041096,120]
[406882000,1772264486936,-3959.084094,0.00041096,120]
[406882001,1772264486984,-3959.084094,0.00041096,120]
[406882002,1772264487035,-3959.084094,0.00041096,120]
[406882003,1772264487082,-3959.084094,0.00041096,120]
[406882004,1772264487127,-3959.084094,0.00041096,120]
[406882005,1772264487173,-3959.084094,0.00041096,120]
[406882006,1772264487218,-3959.084094,0.00041096,120]
[406882007,1772264487266,-3959.084094,0.00041096,120]
[406882008,1772264487312,-218.452348,0.00041096,120]
[406882009,1772264487357,-151.0,0.00041096,120]
[406882010,1772264487403,-179.350741,0.00041096,120]
[406882011,1772264487449,-151.0,0.00041096,120]
[406882012,1772264487494,-151.0,0.00041096,120]
[406882013,1772264487539,-151.0,0.00041096,120]
[406882014,1772264487586,-151.0,0.00041096,120]
[406882015,1772264487631,-201.167448,0.00041096,120]
[406882016,1772264487678,-151.0,0.00041096,120]
[406882017,1772264487727,-151.0,0.00041096,120]
[406882018,1772264487777,-151.0,0.00041096,120]
[406882019,1772264487824,-151.0,0.00041096,120]
[406882020,1772264487872,-183.582218,0.00041096,120]
[406882021,1772264487918,-170.479319,0.00041096,120]
[406882022,1772264487965,-158.430045,0.00041096,120]
[406882023,1772264488012,-151.56614,0.00041096,120]
[406882024,1772264488060,-208.627332,0.00041096,120]
[406882025,1772264488111,-151.0,0.00041096,120]
[406882026,1772264488160,-151.0,0.00041096,120]
[406882027,1772264488208,-151.0,0.00041096,120]
[406882028,1772264488256,-151.0,0.00041096,120]
[406882029,1772264488304,-277.554105,0.00041096,120]
[406882030,1772264488350,-277.554105,0.00041096,120]
[406882031,1772264488399,-277.554105,0.00041096,120]
[406882032,1772264488448,-277.554105,0.00041096,120]
[406882033,1772264488496,-277.554105,0.00041096,120]
[406882034,1772264488542,-277.554105,0.00041096,120]
[406882035,1772264488590,-277.554105,0.00041096,120]
[406882036,1772264488638,-277.554105,0.00041096,120]
[406882037,1772264488693,-277.554105,0.00041096,120]
[406882038,1772264488741,-277.554105,0.00041096,120]
[406882039,1772264488789,-277.554105,0.00041096,120]
[406882040,1772264488836,-277.554105,0.00041096,120]
[406882041,1772264488884,-277.554105,0.00041096,120]
[406882042,1772264488931,-277.554105,0.00041096,120]
[406882043,1772264488976,-277.554105,0.00041096,120]
[406882044,1772264489024,-277.554105,0.00041096,120]
[406882045,1772264489075,-151.0,0.00041096,120]
[406882046,1772264489129,-152.403699,0.00041096,120]
[406882047,1772264489179,-210.922858,0.00041096,120]
[406882048,1772264489234,-151.0,0.00041096,90]
[406882049,1772264489290,-151.0,0.00041096,90]
[406882050,1772264489346,-151.0,0.00041096,90]
[406882051,1772264489398,-151.0,0.00041096,90]
[406882052,1772264489449,-151.0,0.00041096,90]
[406882053,1772264489504,-151.0,0.00041096,90]
[406882054,1772264489556,-151.0,0.00041096,90]
[406882055,1772264489610,-151.0,0.00041096,90]
[406882056,1772264489667,-277.849877,0.00041096,90]
[406882057,1772264489721,-151.0,0.00041096,120]
[406882058,1772264489778,-191.161477,0.00041096,120]
[406882059,1772264489835,-151.0,0.00041096,120]
[406882060,1772264489891,-165.732558,0.00041096,120]
[406882061,1772264489946,-151.0,0.00041096,120]
[406882062,1772264490006,-151.0,0.00041096,120]
[406882063,1772264490063,-151.0,0.00041096,120]
[406882064,1772264490121,-151.0,0.00041096,120]
[406882065,1772264490173,-151.0,0.00041096,120]
[406882066,1772264490231,-151.0,0.00041096,120]
[406882067,1772264490288,-151.0,0.00041096,120]
[406882068,1772264490339,-156.811848,0.00041096,120]
[406882069,1772264490397,-159.625816,0.00041096,120]
[406882070,1772264490454,-151.0,0.00041096,120]
[406882071,1772264490507,-151.0,0.00041096,120]
[406882072,1772264490560,-151.0,0.00041096,120]
[406882073,1772264490611,-184.680225,0.00041096,120]
[406882074,1772264490664,-173.175025,0.00041096,120]
[406882075,1772264490719,-173.175025,0.00041096,120]
[406882076,1772264490777,-173.175025,0.00041096,120]
[406882077,1772264490830,-173.175025,0.00041096,120]
[406882078,1772264490884,-173.175025,0.00041096,120]
[406882079,1772264490939,-173.175025,0.00041096,120]
[406882080,1772264490994,-173.175025,0.00041096,120]
[406882081,1772264491048,-173.175025,0.00041096,120]
[406882082,1772264491101,-151.0,0.00041096,120]
[406882083,1772264491156,-164.403234,0.00041096,120]
[406882084,1772264491210,-173.175025,0.00041096,120]
[406882085,1772264491266,-173.175025,0.00041096,120]
[406882086,1772264491326,-173.175025,0.00041096,120]
[406882087,1772264491384,-173.175025,0.00041096,120]
[406882088,1772264491437,-173.175025,0.00041096,120]
[406882089,1772264491492,-173.175025,0.00041096,120]
[406882090,1772264491546,-173.175025,0.00041096,120]
[406882091,1772264491600,-173.175025,0.00041096,120]
[406882092,1772264491655,-151.0,0.00041096,31]
[406882093,1772264491711,-151.0,0.00041096,31]
[406882094,1772264491764,-151.0,0.00041096,31]
[406882095,1772264491816,-196.558779,0.00041096,31]
[406882096,1772264491866,-151.482489,0.00041096,120]
[406882097,1772264491918,-354.201394,0.00041096,120]
[406882098,1772264491972,-354.201394,0.00041096,120]
[406882099,1772264492029,-354.201394,0.00041096,120]
[406882100,1772264492082,-354.201394,0.00041096,120]
[406882101,1772264492324,-354.201394,0.00041096,120]
[406882102,1772264492391,-354.201394,0.00041096,120]
[406882103,1772264492420,-354.201394,0.00041096,120]
[406882104,1772264492451,-354.201394,0.00041096,120]
[406882105,1772264492479,-354.201394,0.00041096,120]
[406882106,1772264492510,-354.201394,0.00041096,120]
[406882107,1772264492537,-354.201394,0.00041096,120]
[406882108,1772264492564,-354.201394,0.00041096,120]
[406882109,1772264492591,-354.201394,0.00041096,120]
[406882110,1772264492619,-354.201394,0.00041096,120]
[406882111,1772264492646,-354.201394,0.00041096,120]
[406882112,1772264492674,-354.201394,0.00041096,120]
[406882113,1772264492702,-151.0,0.00041096,120]
[406882114,1772264492729,-151.0,0.00041096,120]
[406882115,1772264492766,-256.494287,0.00041096,120]
[406882116,1772264492799,-251.831149,0.00041096,120]
[406882117,1772264492826,-151.0,0.00041096,120]
[406882118,1772264492852,-159.676624,0.00041096,120]
[406882119,1772264492878,-150.0,0.00041096,120]
[406882120,1772264492904,-200.54470385,0.00041151,120]
[406882121,1772264492932,-188.16058021,0.000412,30]
[406882122,1772264492958,-153.601207,0.000412,120]
[406882123,1772264492996,-151.0,0.000412,120]
[406882124,1772264493020,-151.0,0.000412,60]
[406882125,1772264493045,-189.515313,0.000412,120]
[406882126,1772264493073,-151.0,0.000412,60]
[406882127,1772264493100,-151.0,0.000412,120]
[406882128,1772264493128,-151.0,0.000412,120]
[406882129,1772264493155,-151.0,0.000412,120]
[406882130,1772264493181,-15000.0,0.000412,120]
[406882131,1772264493208,-1040.5,0.0004125,30]
[406882132,1772264493234,-196.27769419,0.000413,30]
[406882133,1772264493259,-585.586,0.000414,120]
[406882134,1772264493292,-258.70326766,0.000415,120]
[406882135,1772264493318,-6230.94626339,0.000415,120]
[406882136,1772264493343,-2500.0,0.000415,120]
[406882137,1772264493370,-15000.0,0.000415,120]
[406882138,1772264493404,-9488.2865,0.00041781,120]
[406882139,1772264493431,-9488.2865,0.00041781,120]
[406882140,1772264493459,-9488.2865,0.00041781,120]
[406882141,1772264493487,-9488.2865,0.00041781,120]
[406882142,1772264493518,-9488.2865,0.00041781,120]
[406882143,1772264493545,-9488.2865,0.00041781,120]
[406882144,1772264493572,-9488.2865,0.00041781,120]
[406882145,1772264493598,-9488.2865,0.00041781,120]
[406882146,1772264493624,-9488.2865,0.00041781,120]
[406882147,1772264493652,-9488.2865,0.00041781,120]
[406882148,1772264493680,-9488.2865,0.00041781,120]
[406882149,1772264493706,-9488.2865,0.00041781,120]
[406882150,1772264493731,-151.0,0.00041781,120]
[406882151,1772264493758,-151.0,0.00041781,120]
[406882152,1772264493783,-151.0,0.00041781,120]
[406882153,1772264493807,-151.0,0.00041781,120]
[406882154,1772264493832,-153.077599,0.00041781,120]
[406882155,1772264493857,-151.0,0.00041781,30]
[406882156,1772264493882,-151.0,0.00041781,120]
[406882157,1772264493908,-151.0,0.00041781,120]
[406882158,1772264493933,-151.0,0.00041781,120]
[406882159,1772264493958,-151.0,0.00041781,120]
[406882160,1772264493983,-151.0,0.00041781,120]
[406882161,1772264494013,-151.0,0.00041781,120]
[406882162,1772264494051,-151.0,0.00041781,120]
[406882163,1772264494080,-151.0,0.00041781,30]
[406882164,1772264494105,-151.0,0.00041781,120]
[406882165,1772264494132,-160.878965,0.00041781,120]
[406882166,1772264494160,-151.0,0.00041781,120]
[406882167,1772264494186,-151.0,0.00041781,120]
[406882168,1772264494211,-151.0,0.00041781,120]
[406882169,1772264494240,-151.0,0.00041781,120]
[406882170,1772264494266,-151.0,0.00041781,120]
[406882171,1772264494293,-263.314642,0.00041781,120]
[406882172,1772264494320,-263.314642,0.00041781,120]
[406882173,1772264494346,-263.314642,0.00041781,120]
[406882174,1772264494372,-263.314642,0.00041781,120]
[406882175,1772264494397,-151.0,0.00041781,120]
[406882176,1772264494422,-163.248154,0.00041781,120]
[406882177,1772264494448,-151.0,0.00041781,120]
[406882178,1772264494474,-151.0,0.00041781,120]
[406882179,1772264494500,-151.0,0.00041781,120]
[406882180,1772264494526,-151.0,0.00041781,120]
[406882181,1772264494552,-151.0,0.00041781,120]
[406882182,1772264494577,-169.837721,0.00041781,120]
[406882183,1772264494603,-151.0,0.00041781,120]
[406882184,1772264494628,-151.0,0.00041781,120]
[406882185,1772264494656,-151.0,0.00041781,120]
[406882186,1772264494683,-9488.2865,0.00041781,120]
[406882187,1772264494709,-9488.2865,0.00041781,120]
[406882188,1772264494735,-350.839574,0.00041781,120]
[406882189,1772264494772,-9488.2865,0.00041781,120]
[406882190,1772264494806,-350.839574,0.00041781,120]
[406882191,1772264494833,-9488.2865,0.00041781,120]
[406882192,1772264494860,-151.0,0.00041781,120]
[406882193,1772264494888,-350.839574,0.00041781,120]
[406882194,1772264494916,-151.0,0.00041781,120]
[406882195,1772264494944,-350.839574,0.00041781,120]
[406882196,1772264494973,-151.0,0.00041781,120]
[406882197,1772264495001,-3959.084094,0.00041781,120]
[406882198,1772264495029,-3959.084094,0.00041781,120]
[406882199,1772264495055,-3959.084094,0.00041781,120]
[406882200,1772264495085,-3959.084094,0.00041781,120]
[406882201,1772264495114,-151.0,0.00041781,120]
[406882202,1772264495338,-151.0,0.00041781,120]
[406882203,1772264495367,-151.0,0.00041781,120]
[406882204,1772264495395,-151.0,0.00041781,120]
[406882205,1772264495424,-151.000004,0.00041781,120]
[406882206,1772264495452,-277.554105,0.00041781,120]
[406882207,1772264495480,-277.554105,0.00041781,120]
[406882208,1772264495508,-277.554105,0.00041781,120]
[406882209,1772264495537,-277.554105,0.00041781,120]
[406882210,1772264495569,-151.0,0.00041781,90]
[406882211,1772264495597,-151.0,0.00041781,90]
[406882212,1772264495625,-14026.96,0.000418,120]
[406882213,1772264495653,-160.0,0.000418,120]
[406882214,1772264495681,-180.0,0.0004189,120]
[406882215,1772264495709,-180.0,0.0004189,120]
[406882216,1772264495737,-206.23340893,0.0004189,120]
[406882217,1772264495766,-23015.29906334,0.00042,120]
[406882218,1772264495794,-1122.86,0.00042,120]
[406882219,1772264495821,-73097.93310429,0.00042,120]
[406882220,1772264495848,-2500.0,0.00042,120]
[406882221,1772264495875,-151.0,0.00042,120]
[406882222,1772264495902,-151.0,0.00042,120]
[406882223,1772264495928,-190.39164959,0.00042121,120]
[406882224,1772264495955,-1040.5,0.00042147,30]
[406882225,1772264495983,-157.0,0.000422,120]
[406882226,1772264496010,-268.0,0.00042288,90]
[406882227,1772264496042,-171.33,0.00042466,120]
[406882228,1772264496070,-189.81,0.000425,120]
[406882229,1772264496102,-4281.43,0.00042546,120]
[406882230,1772264496133,-151.0,0.00042549,120]
[406882231,1772264496165,-173.175025,0.00042549,120]
[406882232,1772264496193,-173.175025,0.00042549,120]
[406882233,1772264496227,-173.175025,0.00042549,120]
[406882234,1772264496257,-173.175033,0.00042549,120]
[406882235,1772264496288,-354.201394,0.00042549,120]
[406882236,1772264496317,-354.201394,0.00042549,120]
[406882237,1772264496348,-354.201394,0.00042549,120]
[406882238,1772264496379,-354.201399,0.00042549,120]
[406882239,1772264496417,-155.0,0.000426,120]
[406882240,1772264496445,-12026.3,0.0004275,120]
[406882241,1772264496473,-12127.09159632,0.000429,30]
[406882242,1772264496504,-1000.0,0.00043,120]
[406882243,1772264496529,-500.0,0.00043,120]
[406882244,1772264496555,-500.0,0.00043,120]
[406882245,1772264496581,-3047.0,0.00043,30]
[406882246,1772264496608,-1040.5,0.00043045,30]
[406882247,1772264496635,-200.0,0.00043068,120]
[406882248,1772264496663,-200.0,0.00043068,120]
[406882249,1772264496691,-320.09,0.00043068,120]
[406882250,1772264496720,-165.18699728,0.00043188,30]
[406882251,1772264496753,-17000.69607162,0.0004321,120]
[406882252,1772264496780,-150.0,0.00043288,120]
[406882253,1772264496806,-150.0,0.00043343,120]
[406882254,1772264496832,-150.0,0.00043398,120]
[406882255,1772264496859,-150.0,0.00043452,120]
[406882256,1772264496886,-184.60221093,0.00043507,120]
[406882257,1772264496912,-204.002408,0.00043526,120]
[406882258,1772264496940,-4031.4504,0.00043812,30]
[406882259,1772264496968,-151.0,0.00043836,120]
[406882260,1772264497000,-151.0,0.00043836,120]
[406882261,1772264497028,-151.0,0.00043836,120]
[406882262,1772264497056,-151.0,0.00043836,120]
[406882263,1772264497085,-151.0,0.00043836,120]
[406882264,1772264497115,-151.0,0.00043836,120]
[406882265,1772264497144,-151.0,0.00043836,120]
[406882266,1772264497172,-151.0,0.00043836,120]
[406882267,1772264497199,-151.0,0.00043836,120]
[406882268,1772264497226,-151.0,0.00043836,120]
[406882269,1772264497255,-151.0,0.00043836,120]
[406882270,1772264497282,-198.798558,0.00043836,120]
[406882271,1772264497308,-931.173686,0.00043836,120]
[406882272,1772264497335,-931.173686,0.00043836,120]
[406882273,1772264497363,-931.173686,0.00043836,120]
[406882274,1772264497392,-931.173686,0.00043836,120]
[406882275,1772264497419,-931.173686,0.00043836,120]
[406882276,1772264497446,-931.173686,0.00043836,120]
[406882277,1772264497473,-931.173686,0.00043836,120]
[406882278,1772264497512,-931.173686,0.00043836,120]
[406882279,1772264497541,-931.173686,0.00043836,120]
[406882280,1772264497568,-931.173686,0.00043836,120]
[406882281,1772264497598,-931.173686,0.00043836,120]
[406882282,1772264497625,-931.173686,0.00043836,120]
[406882283,1772264497654,-151.0,0.00043836,120]
[406882284,1772264497680,-151.0,0.00043836,120]
[406882285,1772264497708,-151.0,0.00043836,120]
[406882286,1772264497734,-151.0,0.00043836,120]
[406882287,1772264497763,-159.722962,0.00043836,120]
[406882288,1772264497791,-20000.0,0.00043836,120]
[406882289,1772264497819,-153.43019506,0.0004384,120]
[406882290,1772264497845,-153.43,0.0004384,120]
[406882291,1772264497871,-252.27,0.0004384,120]
[406882292,1772264497898,-1040.5,0.00043942,120]
[406882293,1772264497924,-181.09273587,0.00044,120]
[406882294,1772264497954,-8062.85921081,0.00044,120]
[406882295,1772264497982,-150.0,0.00044,57]
[406882296,1772264498013,-327.53110463,0.000444,120]
[406882297,1772264498042,-157.0,0.000444,120]
[406882298,1772264498070,-1000.0,0.000444,120]
[406882299,1772264498103,-1000.0,0.000444,120]
[406882300,1772264498133,-1000.0,0.000444,120]
[406882301,1772264498161,-1000.0,0.000444,120]
[406882302,1772264498189,-5055.24254549,0.00044498,31]
[406882303,1772264498216,-828.0,0.000445,120]
[406882304,1772264498245,-1040.5,0.00044839,120]
[406882305,1772264498273,-164.37,0.000449,30]
[406882306,1772264498472,-182.62233084,0.000449,120]
[406882307,1772264498501,-500.0,0.00045,120]
[406882308,1772264498529,-500.0,0.00045,120]
[406882309,1772264498555,-500.0,0.00045,120]
[406882310,1772264498582,-500.0,0.00045,120]
[406882311,1772264498609,-500.0,0.00045,120]
[406882312,1772264498637,-600.996084,0.00045,120]
[406882313,1772264498664,-500.0,0.00045,120]
[406882314,1772264498689,-184.49042972,0.00045,120]
[406882315,1772264498716,-5188.98774853,0.00045,120]
[406882316,1772264498743,-267.92,0.00045,120]
[406882317,1772264498769,-11752.66445393,0.00045,120]
[406882318,1772264498796,-1000.0,0.00045,30]
[406882319,1772264498822,-1293.98252427,0.00045,120]
[406882320,1772264498850,-3743.59,0.00045,30]
[406882321,1772264498877,-2174.79,0.00045,30]
[406882322,1772264498903,-263.0,0.00045107,90]
[406882323,1772264498932,-15255.72813629,0.00045153,30]
[406882324,1772264498957,-1539.14,0.00045205,120]
[406882325,1772264498985,-155.0,0.000453,120]
[406882326,1772264499012,-1110.4155783,0.00045327,50]
[406882327,1772264499040,-1041.20429793,0.00045327,50]
[406882328,1772264499066,-1072.95604648,0.00045327,50]
[406882329,1772264499097,-1119.96221519,0.00045327,50]
[406882330,1772264499125,-1029.977673,0.00045327,50]
[406882331,1772264499152,-1140.82299028,0.00045327,50]
[406882332,1772264499180,-1026.49162827,0.00045327,50]
[406882333,1772264499207,-295.204,0.00045327,30]
[406882334,1772264499236,-1134.07231365,0.00045327,50]
[406882335,1772264499264,-1115.19992507,0.00045327,50]
[406882336,1772264499291,-1108.24083041,0.00045327,50]
[406882337,1772264499319,-1031.3202246,0.00045327,50]
[406882338,1772264499345,-1108.65675637,0.00045327,50]
[406882339,1772264499372,-1057.24110576,0.00045327,50]
[406882340,1772264499400,-1054.84725746,0.00045327,50]
[406882341,1772264499428,-1146.0776484,0.00045327,50]
[406882342,1772264499455,-1054.22572179,0.00045327,50]
[406882343,1772264499484,-1043.62792459,0.00045327,50]
[406882344,1772264499512,-1145.6445992,0.00045327,50]
[406882345,1772264499540,-1079.99210142,0.00045327,50]
[406882346,1772264499568,-1144.02272605,0.00045327,50]
[406882347,1772264499596,-1052.7769788,0.00045327,50]
[406882348,1772264499626,-1060.77802358,0.00045327,50]
[406882349,1772264499656,-1129.56933953,0.00045327,50]
[406882350,1772264499685,-1029.88115508,0.00045327,50]
[406882351,1772264499714,-1137.82072477,0.00045327,50]
[406882352,1772264499746,-1589.13431176,0.00045327,50]
[406882353,1772264499773,-1431.0,0.000457,120]
[406882354,1772264499802,-1040.5,0.00045737,120]
[406882355,1772264499829,-500.0,0.00045767,30]
[406882356,1772264499858,-150.0,0.000458,120]
[406882357,1772264499885,-500.0,0.000459,120]
[406882358,1772264499912,-312.4472434,0.00045998,120]
[406882359,1772264499939,-500.0,0.00046,120]
[406882360,1772264499967,-425.92144494,0.00046,120]
[406882361,1772264499994,-202.5753493,0.00046,120]
[406882362,1772264500021,-500.0,0.00046041,30]
[406882363,1772264500048,-341.19521294,0.00046156,120]
[406882364,1772264500076,-4750.26849526,0.00046182,30]
[406882365,1772264500104,-51620.17791834,0.00046182,30]
[406882366,1772264500131,-2832.65558049,0.00046182,30]
[406882367,1772264500158,-175.76937218,0.000462,90]
[406882368,1772264500186,-358.07,0.0004625,30]
[406882369,1772264500213,-271.73047182,0.00046252,30]
[406882370,1772264500242,-810.83826269,0.00046252,30]
[406882371,1772264500271,-151.0,0.00046252,120]
[406882372,1772264500298,-151.000008,0.00046252,120]
[406882373,1772264500325,-151.0,0.00046252,120]
[406882374,1772264500353,-151.0,0.00046252,120]
[406882375,1772264500381,-151.0,0.00046252,120]
[406882376,1772264500408,-151.0,0.00046252,120]
[406882377,1772264500436,-151.0,0.00046252,120]
[406882378,1772264500463,-248.481134,0.00046252,120]
[406882379,1772264500492,-235.366062,0.00046252,120]
[406882380,1772264500519,-151.0,0.00046252,120]
[406882381,1772264500548,-9488.2865,0.00046252,120]
[406882382,1772264500576,-9488.2865,0.00046252,120]
[406882383,1772264500605,-350.839574,0.00046252,120]
[406882384,1772264500633,-9488.2865,0.00046252,120]
[406882385,1772264500661,-350.839574,0.00046252,120]
[406882386,1772264500690,-9488.2865,0.00046252,120]
[406882387,1772264500718,-151.0,0.00046252,120]
[406882388,1772264500745,-350.839574,0.00046252,120]
[406882389,1772264500775,-151.0,0.00046252,120]
[406882390,1772264500803,-350.839564,0.00046252,120]
[406882391,1772264500831,-151.0,0.00046252,120]
[406882392,1772264500859,-3959.084094,0.00046252,120]
[406882393,1772264500887,-3959.084094,0.00046252,120]
[406882394,1772264500915,-3959.084094,0.00046252,120]